fUST/lending_fUST_20250720
["ID","MTS","AMOUNT","RATE_DAILY","PERIOD"]
[373375568,1752976244563,-785.26,0.00021339,2]
[373375570,1752976244572,-151.0,0.0002134,2]
[373375572,1752976244582,-163.26741189,0.00021388,2]
[373375574,1752976244595,-161.959313,0.00021404,2]
[373375576,1752976244605,-154.7328928,0.00021405,2]
[373375578,1752976244614,-153.3382709,0.00021405,2]
[373375580,1752976244624,-160.6865748,0.00021405,2]
[373375582,1752976244633,-1191.7003037,0.00021405,2]
[373375584,1752976244642,-153.0,0.00021405,2]
[373375585,1752976244651,-577.1515091,0.00021405,2]
[373375587,1752976244661,-178.1115364,0.00021405,2]
[373375589,1752976244671,-159.8125085,0.00021405,2]
[373375591,1752976244681,-178.1115364,0.00021405,2]
[373375593,1752976244690,-577.1515091,0.00021405,2]
[373375595,1752976244699,-153.0,0.00021405,2]
[373375597,1752976244709,-159.8125085,0.00021405,2]
[373375599,1752976244718,-577.1515091,0.00021405,2]
[373375601,1752976244727,-178.1115364,0.00021405,2]
[373375603,1752976244738,-354.21648984,0.00021411,2]
[373375605,1752976244748,-500.0,0.00021448,2]
[373375607,1752976244760,-500.0,0.00021448,2]
[373375609,1752976244769,-500.0,0.00021522,2]
[373375611,1752976244779,-9097.7699918,0.00021555,5]
[373375613,1752976244789,-643.18,0.00021609,2]
[373375615,1752976244800,-506.87,0.00021609,2]
[373375617,1752976244809,-858.87,0.00021609,2]
[373375619,1752976244819,-460.0,0.00021609,2]
[373375621,1752976244828,-1345.01,0.00021609,2]
[373375623,1752976244837,-460.0,0.00021609,2]
[373375625,1752976244847,-460.0,0.00021611,2]
[373375627,1752976244856,-500.0,0.00021612,2]
[373375629,1752976244865,-151.0,0.00021612,2]
[373375631,1752976244875,-500.55,0.00021612,2]
[373375633,1752976244885,-798.4,0.00021612,2]
[373375635,1752976244898,-1000.0,0.00021613,2]
[373375637,1752976244908,-460.0,0.00021613,2]
[373375639,1752976244918,-1462.88,0.00021613,2]
[373375641,1752976244927,-460.0,0.00021613,2]
[373375643,1752976244936,-785.26,0.00021613,2]
[373375645,1752976244945,-1000.0,0.00021627,2]
[373375647,1752976244955,-512.46627473,0.00021635,2]
[373375649,1752976244964,-360.0,0.00021669,2]
[373375651,1752976244973,-699.072,0.00021675,2]
[373375653,1752976244982,-2156.0,0.00021675,2]
[373375655,1752976244991,-970.712,0.00021675,2]
[373375657,1752976245001,-151.610801,0.00021693,3]
[373375659,1752976245011,-150.0,0.00021733,2]
[373375661,1752976245020,-150.0,0.00021733,2]
[373375663,1752976245029,-151.0,0.00021762,2]
[373375665,1752976245042,-9097.7699918,0.00021797,6]
[373375667,1752976245052,-620.07,0.000218,7]
[373375669,1752976245061,-643.18,0.00021883,2]
[373375671,1752976245071,-506.87,0.00021883,2]
[373375673,1752976245080,-858.87,0.00021883,2]
[373375675,1752976245089,-460.0,0.00021883,2]
[373375677,1752976245098,-1345.01,0.00021883,2]
[373375679,1752976245107,-520.71101738,0.00021883,2]
[373375681,1752976245117,-172.425784,0.00021884,2]
[373375683,1752976245127,-172.425784,0.00021884,2]
[373375685,1752976245136,-151.0,0.00021884,2]
[373375687,1752976245146,-460.0,0.00021885,2]
[373375689,1752976245155,-151.0,0.00021886,2]
[373375691,1752976245164,-500.55,0.00021886,2]
[373375693,1752976245174,-798.4,0.00021886,2]
[373375695,1752976245184,-151.0,0.00021887,2]
[373375696,1752976245194,-151.0,0.00021887,2]
[373375698,1752976245203,-300.551088,0.00021887,2]
[373375700,1752976245213,-300.551088,0.00021887,2]
[373375702,1752976245222,-151.0,0.00021887,2]
[373375704,1752976245232,-152.473751,0.00021887,2]
[373375706,1752976245243,-331.259801,0.00021887,2]
[373375708,1752976245253,-331.259801,0.00021887,2]
[373375710,1752976245262,-151.0,0.00021887,2]
[373375712,1752976245272,-336.431934,0.00021887,2]
[373375714,1752976245282,-336.431934,0.00021887,2]
[373375716,1752976245291,-165.339498,0.00021887,2]
[373375718,1752976245301,-165.339498,0.00021887,2]
[373375720,1752976245310,-460.0,0.00021887,2]
[373375722,1752976245320,-1462.88,0.00021887,2]
[373375724,1752976245329,-460.0,0.00021887,2]
[373375726,1752976245339,-785.26,0.00021887,2]
[373375728,1752976245348,-167.64803749,0.000219,2]
[373375729,1752976245357,-151.0,0.00021917,2]
[373375731,1752976245366,-500.0,0.00021917,2]
[373375733,1752976245376,-500.0,0.00021917,2]
[373375735,1752976245386,-500.0,0.00021917,2]
[373375737,1752976245395,-500.0,0.00021917,2]
[373375739,1752976245404,-500.0,0.00021917,2]
[373375741,1752976245413,-500.0,0.00021917,2]
[373375743,1752976245424,-500.0,0.00021917,2]
[373375745,1752976245434,-500.0,0.00021917,2]
[373375747,1752976245444,-500.0,0.00021917,2]
[373375749,1752976245454,-500.0,0.00021917,2]
[373375751,1752976245463,-500.0,0.00021917,2]
[373375753,1752976245472,-500.0,0.00021917,2]
[373375755,1752976245482,-500.0,0.00021917,2]
[373375757,1752976245491,-500.0,0.00021917,2]
[373375759,1752976245501,-500.0,0.00021917,2]
[373375761,1752976245511,-500.0,0.00021917,2]
[373375763,1752976245521,-500.0,0.00021917,2]
[373375765,1752976245531,-500.0,0.00021917,2]
[373375767,1752976245541,-192.28591105,0.00021917,2]
[373375769,1752976245551,-151.0,0.00021918,2]
[373375771,1752976245563,-151.0,0.00021918,2]
[373375773,1752976245572,-151.0,0.00021918,2]
[373375774,1752976245581,-151.0,0.00021918,2]
[373375776,1752976245591,-150.09319079,0.00021918,2]
[373375778,1752976245600,-152.0,0.00021918,2]
[373375780,1752976245610,-151.0,0.00021969,7]
[373375782,1752976245619,-1000.0,0.00021996,2]
[373375784,1752976245631,-421.81853855,0.00021996,2]
[373375786,1752976245640,-1487.5,0.00022,2]
[373375788,1752976245649,-9596.77,0.00022,7]
[373375790,1752976245658,-7000.0,0.00022,10]
[373375792,1752976245668,-160.0,0.00022,2]
[373375794,1752976245677,-9097.7699918,0.00022038,6]
[373375796,1752976245687,-151.0,0.00022043,7]
[373375798,1752976245696,-587.0,0.00022109,2]
[373375800,1752976245705,-151.0,0.00022112,7]
[373375802,1752976245714,-277.832405,0.00022112,7]
[373375804,1752976245723,-150.135,0.00022152,2]
[373375806,1752976245732,-150.0,0.00022152,2]
[373375808,1752976245741,-643.18,0.00022157,2]
[373375810,1752976245750,-506.87,0.00022157,2]
[373375811,1752976245759,-858.87,0.00022157,2]
[373375813,1752976245768,-460.0,0.00022157,2]
[373375815,1752976245777,-1345.01,0.00022157,2]
[373375817,1752976245787,-172.425784,0.00022158,7]
[373375819,1752976245796,-172.425784,0.00022158,7]
[373375821,1752976245806,-151.0,0.00022158,7]
[373375823,1752976245815,-460.0,0.00022159,2]
[373375825,1752976245824,-500.0,0.0002216,2]
[373375827,1752976245833,-500.55,0.0002216,2]
[373375829,1752976245843,-798.4,0.0002216,2]
[373375831,1752976245852,-1315.81894006,0.00022161,2]
[373375833,1752976245861,-460.0,0.00022161,2]
[373375835,1752976245870,-1462.88,0.00022161,2]
[373375837,1752976245880,-460.0,0.00022161,2]
[373375839,1752976245892,-785.26,0.00022161,2]
[373375841,1752976245903,-1500.0,0.00022174,2]
[373375842,1752976245915,-331.259801,0.00022176,7]
[373375843,1752976245924,-331.259801,0.00022176,7]
[373375844,1752976245934,-151.0,0.00022176,7]
[373375845,1752976245943,-165.443902,0.00022176,7]
[373375846,1752976245952,-500.0,0.00022191,2]
[373375847,1752976245962,-150.0,0.000222,2]
[373375848,1752976245971,-266.27073169,0.00022217,2]
[373375849,1752976245981,-178.1115364,0.00022227,2]
[373375850,1752976245991,-159.8125085,0.00022227,2]
[373375851,1752976246000,-577.1515091,0.00022227,2]
[373375852,1752976246010,-159.8125085,0.00022227,2]
[373375853,1752976246019,-178.1115364,0.00022227,2]
[373375854,1752976246028,-178.1115364,0.00022227,2]
[373375855,1752976246038,-159.8125085,0.00022227,2]
[373375856,1752976246047,-159.8125085,0.00022227,2]
[373375857,1752976246056,-178.1115364,0.00022227,2]
[373375858,1752976246065,-178.1115364,0.00022227,2]
[373375859,1752976246074,-355.6675451,0.00022227,2]
[373375860,1752976246083,-9097.7699918,0.00022279,6]
[373375861,1752976246093,-163.26741189,0.00022353,2]
[373375862,1752976246102,-151.610801,0.00022417,2]
[373375863,1752976246111,-336.431934,0.00022431,7]
[373375864,1752976246120,-336.431934,0.00022431,7]
[373375865,1752976246129,-165.339498,0.00022431,7]
[373375866,1752976246138,-165.339498,0.00022431,7]
[373375867,1752976246148,-643.18,0.00022431,2]
[373375869,1752976246164,-506.87,0.00022431,2]
[373375870,1752976246174,-858.87,0.00022431,2]
[373375872,1752976246183,-460.0,0.00022431,2]
[373375874,1752976246192,-1345.01,0.00022431,2]
[373375876,1752976246201,-151.0,0.00022432,7]
[373375878,1752976246211,-460.0,0.00022433,2]
[373375880,1752976246220,-500.0,0.00022434,2]
[373375882,1752976246230,-500.55,0.00022434,2]
[373375884,1752976246239,-798.4,0.00022434,2]
[373375885,1752976246249,-460.0,0.00022435,2]
[373375887,1752976246258,-1462.88,0.00022435,2]
[373375890,1752976246269,-460.0,0.00022435,2]
[373375892,1752976246280,-785.26,0.00022435,2]
[373375894,1752976246289,-864.1756301,0.00022438,2]
[373375896,1752976246299,-429.3901486,0.00022438,2]
[373375898,1752976246309,-858.6313577,0.00022466,2]
[373375900,1752976246319,-215.0738,0.00022505,2]
[373375902,1752976246329,-9097.7699918,0.00022521,7]
[373375904,1752976246338,-1500.0,0.00022544,2]
[373375906,1752976246347,-151.0,0.0002259,7]
[373375908,1752976246357,-300.551088,0.0002259,7]
[373375910,1752976246366,-300.551088,0.0002259,7]
[373375912,1752976246379,-151.0,0.0002259,7]
[373375914,1752976246388,-177.959946,0.0002259,7]
[373375916,1752976246398,-500.0,0.00022598,2]
[373375918,1752976246407,-178.597975,0.00022603,2]
[373375920,1752976246417,-151.610801,0.00022681,3]
[373375922,1752976246426,-245.0,0.0002269,5]
[373375924,1752976246436,-643.18,0.00022705,2]
[373375926,1752976246445,-506.87,0.00022705,2]
[373375928,1752976246454,-858.87,0.00022705,2]
[373375930,1752976246464,-460.0,0.00022705,2]
[373375932,1752976246474,-1345.01,0.00022705,2]
[373375934,1752976246483,-151.0,0.00022706,7]
[373375936,1752976246493,-460.0,0.00022707,2]
[373375938,1752976246503,-500.0,0.00022708,2]
[373375940,1752976246512,-500.0,0.00022708,2]
[373375942,1752976246522,-500.55,0.00022708,2]
[373375944,1752976246532,-798.4,0.00022708,2]
[373375946,1752976246541,-151.0,0.00022709,7]
[373375948,1752976246550,-460.0,0.00022709,2]
[373375950,1752976246559,-1462.88,0.00022709,2]
[373375952,1752976246568,-460.0,0.00022709,2]
[373375954,1752976246578,-785.26,0.00022709,2]
[373375956,1752976246587,-2000.0,0.00022722,2]
[373375958,1752976246597,-300.0,0.00022748,2]
[373375960,1752976246607,-9097.7699918,0.00022762,7]
[373375962,1752976246616,-162.1995057,0.00022849,2]
[373375975,1752976246729,-180.7632622,0.00022849,2]
[373375977,1752976246739,-585.6775923,0.00022849,2]
[373375979,1752976246748,-178.1115364,0.00022849,2]
[373375981,1752976246758,-159.8125085,0.00022849,2]
[373375983,1752976246767,-66.75859155,0.00022849,2]
[373375993,1752976246844,-510.39291755,0.00022849,2]
[373375995,1752976246854,-159.8125085,0.00022849,2]
[373375997,1752976246864,-570.90385421,0.00022849,2]
[373375999,1752976246876,-6.24765489,0.00022849,2]
[373376001,1752976246886,-178.1115364,0.00022849,2]
[373376003,1752976246899,-178.1115364,0.00022849,2]
[373376005,1752976246909,-577.1515091,0.00022849,2]
[373376007,1752976246919,-98.78493601,0.00022849,2]
[373376010,1752976246930,-207.37367609,0.00022849,2]
[373376012,1752976246940,-313.5921568,0.00022849,2]
[373376014,1752976246949,-178.1115364,0.00022849,2]
[373376016,1752976246959,-320.1890901,0.00022849,2]
[373376018,1752976246968,-306.0,0.00022849,2]
[373376020,1752976246977,-889.33068021,0.00022877,2]
[373376022,1752976246989,-326.45596437,0.00022877,2]
[373376024,1752976246999,-168.0,0.00022912,2]
[373376026,1752976247009,-363.35401563,0.00022979,2]
[373376034,1752976247074,-463.01484318,0.00018594,2]
[373376036,1752976247083,-279.82598437,0.00022979,2]
[373376038,1752976247092,-506.87,0.00022979,2]
[373376040,1752976247102,-858.87,0.00022979,2]
[373376042,1752976247111,-460.0,0.00022979,2]
[373376044,1752976247120,-1345.01,0.00022979,2]
[373376046,1752976247130,-172.425784,0.0002298,7]
[373376048,1752976247139,-172.425784,0.0002298,7]
[373376050,1752976247149,-151.0,0.0002298,7]
[373376052,1752976247158,-460.0,0.00022981,2]
[373376054,1752976247168,-151.0,0.00022982,7]
[373376056,1752976247177,-151.0,0.00022982,7]
[373376058,1752976247187,-500.55,0.00022982,2]
[373376060,1752976247196,-798.4,0.00022982,2]
[373376062,1752976247205,-521.05,0.00022982,2]
[373376064,1752976247214,-460.0,0.00022983,2]
[373376066,1752976247223,-1462.88,0.00022983,2]
[373376068,1752976247233,-460.0,0.00022983,2]
[373376070,1752976247243,-785.26,0.00022983,2]
[373376072,1752976247252,-151.0,0.00023,7]
[373376074,1752976247261,-160.0,0.00023,3]
[373376076,1752976247271,-160.0,0.00023,3]
[373376078,1752976247280,-230.94145789,0.00023,3]
[373376080,1752976247289,-215.67360783,0.00023,3]
[373376082,1752976247298,-525.83049785,0.00023,3]
[373376084,1752976247308,-839.454303,0.00023,3]
[373376086,1752976247317,-9097.7699918,0.00023003,8]
[373376088,1752976247327,-228.384808,0.00023004,7]
[373376091,1752976247348,-331.259801,0.00023004,7]
[373376093,1752976247358,-331.259801,0.00023004,7]
[373376095,1752976247367,-160.0,0.00023014,7]
[373376097,1752976247377,-545.941756,0.00023029,8]
[373376099,1752976247386,-300.551088,0.00023029,7]
[373376101,1752976247396,-300.551088,0.00023029,7]
[373376103,1752976247405,-51.58039424,0.00023029,7]
[373378527,1752976479434,10000.0,0.0001652,2]
[373378528,1752976490802,203.831619,0.00027397,120]
[373378529,1752976495412,10000.0,0.0001652,2]
[373378531,1752976515463,10000.0,0.0001652,2]
[373378533,1752976531429,10000.0,0.0001652,2]
[373378534,1752976548992,10000.0,0.0001652,2]
[373378535,1752976567521,7236.0,0.0001652,2]
[373378582,1752977432233,-169.45616089,0.00018472,2]
[373378584,1752977432243,-270.10281233,0.00018494,2]
[373378586,1752977432255,-29.89718767,0.00018494,2]
[373378589,1752977432265,-561.10281233,0.00018494,2]
[373378591,1752977432277,-386.89718767,0.00018494,2]
[373378593,1752977432287,-303.20879107,0.00018495,2]
[373378595,1752977432297,-7369.2188208,0.00018495,2]
[373378599,1752977432327,-6705.97301025,0.00018495,2]
[373378601,1752977432336,-464.77544836,0.0001857,2]
[373378603,1752977432345,-469.22416153,0.0001857,2]
[373378605,1752977432354,-460.0,0.0001857,2]
[373378607,1752977432364,-460.0,0.0001857,2]
[373378609,1752977432374,-460.0,0.0001857,2]
[373378611,1752977432384,-460.0,0.0001857,2]
[373378613,1752977432393,-458.84424433,0.0001857,2]
[373378615,1752977432402,-466.9152929,0.00018571,2]
[373378617,1752977432412,-460.0,0.00018571,2]
[373378619,1752977432422,-465.54242576,0.00018571,2]
[373378621,1752977432432,-463.58615748,0.00018571,2]
[373378623,1752977432441,-468.18745857,0.00018571,2]
[373378625,1752977432450,-714.49,0.00018571,2]
[373378627,1752977432459,-460.0,0.00018571,2]
[373378629,1752977432469,-460.0,0.00018571,2]
[373378631,1752977432479,-465.81464672,0.00018571,2]
[373378633,1752977432488,-741.54,0.00018571,2]
[373378635,1752977432498,-460.0,0.00018571,2]
[373378637,1752977432507,-1329.16,0.00018571,2]
[373378639,1752977432516,-460.0,0.00018571,2]
[373378641,1752977432526,-460.0,0.00018571,2]
[373378643,1752977432535,-460.0,0.00018571,2]
[373378645,1752977432545,-470.49630127,0.00018571,2]
[373378647,1752977432557,-460.0,0.00018571,2]
[373378649,1752977432567,-461.61340555,0.00018571,2]
[373378651,1752977432576,-460.0,0.00018571,2]
[373378652,1752977432585,-460.0,0.00018571,2]
[373378654,1752977432594,-460.0,0.00018571,2]
[373378656,1752977432603,-471.64876364,0.00018571,2]
[373378657,1752977432613,-470.5986001,0.00018571,2]
[373378658,1752977432622,-460.0,0.00018571,2]
[373378660,1752977432631,-460.0,0.00018571,2]
[373378662,1752977432641,-460.0,0.00018571,2]
[373378664,1752977432650,-460.0,0.00018571,2]
[373378666,1752977432659,-485.81571936,0.00018571,2]
[373378668,1752977432668,-460.0,0.00018571,2]
[373378670,1752977432678,-461.9449996,0.00018572,2]
[373378672,1752977432688,-462.38427311,0.00018572,2]
[373378674,1752977432697,-461.67084709,0.00018572,2]
[373378676,1752977432706,-460.0,0.00018572,2]
[373378678,1752977432715,-460.0,0.00018572,2]
[373378680,1752977432724,-460.0,0.00018572,2]
[373378682,1752977432733,-460.0,0.00018572,2]
[373378684,1752977432743,-460.0,0.00018572,2]
[373378686,1752977432753,-460.0,0.00018572,2]
[373378688,1752977432763,-460.0,0.00018572,2]
[373378690,1752977432772,-460.0,0.00018572,2]
[373378692,1752977432782,-539.68825781,0.00018572,2]
[373378694,1752977432794,-463.22168155,0.00018572,2]
[373378696,1752977432805,-464.88705092,0.00018572,2]
[373378698,1752977432815,-460.0,0.00018572,2]
[373378700,1752977432825,-467.79420806,0.00018572,2]
[373378702,1752977432835,-460.0,0.00018572,2]
[373378704,1752977432844,-461.01298172,0.00018572,2]
[373378706,1752977432853,-465.56135732,0.00018572,2]
[373378708,1752977432864,-461.05206333,0.00018572,2]
[373378710,1752977432873,-439.18322323,0.00018572,2]
[373378712,1752977432883,-461.35242345,0.00018572,2]
[373378714,1752977432892,-463.5257415,0.00018572,2]
[373378716,1752977432901,-463.6554268,0.00018572,2]
[373378718,1752977432910,-460.0,0.00018572,2]
[373378719,1752977432920,-461.24675299,0.00018572,2]
[373378721,1752977432929,-463.41389983,0.00018572,2]
[373378723,1752977432939,-460.0,0.00018572,2]
[373378725,1752977432948,-460.0,0.00018572,2]
[373378727,1752977432958,-462.4297574,0.00018572,2]
[373378729,1752977432967,-460.0,0.00018572,2]
[373378731,1752977432976,-462.55157068,0.00018572,2]
[373378733,1752977432985,-460.89190463,0.00018572,2]
[373378735,1752977432994,-461.05200265,0.00018572,2]
[373378737,1752977433003,-460.0,0.00018572,2]
[373378739,1752977433013,-461.82973326,0.00018572,2]
[373378740,1752977433024,-460.0,0.00018572,2]
[373378742,1752977433038,-460.0,0.00018572,2]
[373378743,1752977433049,-462.10008331,0.00018572,2]
[373378746,1752977433059,-460.0,0.00018572,2]
[373378748,1752977433076,-465.04943502,0.00018572,2]
[373378749,1752977433086,-460.0,0.00018572,2]
[373378752,1752977433096,-460.0,0.00018572,2]
[373378754,1752977433106,-433.51989128,0.00018572,2]
[373378756,1752977433115,-465.7676598,0.00018572,2]
[373378758,1752977433125,-466.53872909,0.00018572,2]
[373378760,1752977433136,-500.0,0.00018572,2]
[373378762,1752977433146,-460.0,0.00018572,2]
[373378764,1752977433156,-463.58982943,0.00018572,2]
[373378766,1752977433165,-460.0,0.00018572,2]
[373378768,1752977433174,-460.0,0.00018572,2]
[373378770,1752977433184,-460.0,0.00018572,2]
[373378772,1752977433193,-461.13511071,0.00018572,2]
[373378774,1752977433202,-500.0,0.00018572,2]
[373378776,1752977433211,-460.0,0.00018572,2]
[373378777,1752977433221,-460.0,0.00018572,2]
[373378780,1752977433236,-461.29961764,0.00018572,2]
[373378782,1752977433246,-263.59451194,0.00018572,2]
[373378784,1752977433256,-464.46396701,0.00018572,2]
[373378786,1752977433266,-464.67489554,0.00018572,2]
[373378788,1752977433277,-461.09431257,0.00018572,2]
[373378790,1752977433287,-460.0,0.00018572,2]
[373378792,1752977433298,-461.36015059,0.00018572,2]
[373378794,1752977433308,-460.0,0.00018572,2]
[373378796,1752977433319,-460.87747867,0.00018572,2]
[373378798,1752977433330,-461.39642852,0.00018572,2]
[373378800,1752977433341,-462.80194748,0.00018572,2]
[373378802,1752977433351,-462.37418268,0.00018572,2]
[373378804,1752977433361,-461.70207426,0.00018572,2]
[373378806,1752977433371,-462.27055875,0.00018572,2]
[373378808,1752977433380,-461.17515138,0.00018572,2]
[373378810,1752977433389,-462.43716038,0.00018572,2]
[373378812,1752977433399,-463.13429231,0.00018572,2]
[373378814,1752977433409,-460.0,0.00018572,2]
[373378816,1752977433419,-464.26629101,0.00018572,2]
[373378818,1752977433429,-179.25816707,0.00018572,2]
[373378820,1752977433438,-419.65210699,0.00018572,2]
[373378822,1752977433448,-460.0,0.00018572,2]
[373378824,1752977433458,-460.0,0.00018572,2]
[373378826,1752977433467,-460.0,0.00018572,2]
[373378828,1752977433477,-460.0,0.00018572,2]
[373378830,1752977433487,-460.0,0.00018572,2]
[373378832,1752977433497,-460.97791304,0.00018572,2]
[373378834,1752977433507,-275.0478847,0.00018572,2]
[373378836,1752977433517,-463.18710514,0.00018572,2]
[373378838,1752977433527,-470.0050841,0.00018572,2]
[373378840,1752977433536,-440.0,0.00018572,2]
[373378842,1752977433546,-460.0,0.00018572,2]
[373378844,1752977433556,-460.0,0.00018572,2]
[373378846,1752977433567,-460.0,0.00018572,2]
[373378848,1752977433576,-470.17334182,0.00018572,2]
[373378850,1752977433586,-464.10537348,0.00018572,2]
[373378852,1752977433596,-469.98927654,0.00018572,2]
[373378854,1752977433606,-460.0,0.00018572,2]
[373378856,1752977433615,-460.0,0.00018572,2]
[373378858,1752977433625,-460.0,0.00018572,2]
[373378860,1752977433634,-460.0,0.00018572,2]
[373378862,1752977433644,-460.0,0.00018572,2]
[373378864,1752977433654,-461.71702879,0.00018572,2]
[373378866,1752977433663,-464.86334862,0.00018572,2]
[373378868,1752977433673,-460.0,0.00018572,2]
[373378870,1752977433683,-460.0,0.00018572,2]
[373378872,1752977433692,-460.0,0.00018572,2]
[373378874,1752977433702,-460.0,0.00018572,2]
[373378876,1752977433711,-510.67457674,0.00018572,2]
[373378877,1752977433720,-460.0,0.00018572,2]
[373378879,1752977433730,-461.55949861,0.00018572,2]
[373378881,1752977433739,-460.0,0.00018572,2]
[373378883,1752977433749,-465.29211304,0.00018572,2]
[373378885,1752977433759,-463.32362564,0.00018572,2]
[373378887,1752977433769,-460.0,0.00018572,2]
[373378889,1752977433778,-465.42612677,0.00018572,2]
[373378891,1752977433787,-469.36793708,0.00018572,2]
[373378893,1752977433797,-462.34937141,0.00018572,2]
[373378895,1752977433808,-441.64710408,0.00018572,2]
[373378897,1752977433818,-461.21445089,0.00018572,2]
[373378899,1752977433827,-465.39302363,0.00018572,2]
[373378901,1752977433837,-460.0,0.00018572,2]
[373378903,1752977433847,-462.95048974,0.00018572,2]
[373378905,1752977433857,-460.0,0.00018572,2]
[373378907,1752977433866,-460.0,0.00018572,2]
[373378909,1752977433876,-462.99603587,0.00018572,2]
[373378911,1752977433885,-460.0,0.00018572,2]
[373378913,1752977433895,-460.0,0.00018572,2]
[373378915,1752977433904,-460.0,0.00018572,2]
[373378917,1752977433914,-460.0,0.00018572,2]
[373378918,1752977433923,-460.60228405,0.00018572,2]
[373378920,1752977433932,-463.09392368,0.00018572,2]
[373378922,1752977433942,-460.0,0.00018572,2]
[373378924,1752977433951,-462.8377648,0.00018572,2]
[373378926,1752977433961,-222.32300068,0.00018572,2]
[373378928,1752977433971,-460.0,0.00018572,2]
[373378930,1752977433981,-460.0,0.00018572,2]
[373378932,1752977433991,-460.0,0.00018572,2]
[373378934,1752977434000,-524.24271691,0.00018572,2]
[373378936,1752977434009,-460.0,0.00018572,2]
[373378938,1752977434019,-378.40833679,0.00018572,2]
[373378940,1752977434028,-463.22496823,0.00018572,2]
[373378942,1752977434038,-507.81536062,0.00018572,2]
[373378944,1752977434047,-460.0,0.00018572,2]
[373378946,1752977434058,-460.0,0.00018572,2]
[373378948,1752977434067,-277.27365096,0.00018572,2]
[373378950,1752977434077,-465.2759196,0.00018572,2]
[373378952,1752977434087,-466.63960864,0.00018572,2]
[373378954,1752977434096,-476.91112281,0.00018572,2]
[373378956,1752977434105,-452.92409245,0.00018572,2]
[373378958,1752977434115,-462.40530779,0.00018572,2]
[373378960,1752977434125,-466.14026298,0.00018572,2]
[373378962,1752977434134,-462.93078835,0.00018572,2]
[373378964,1752977434144,-464.67984858,0.00018572,2]
[373378966,1752977434153,-375.42363779,0.00018572,2]
[373378968,1752977434163,-460.0,0.00018572,2]
[373378970,1752977434173,-463.53253765,0.00018572,2]
[373378971,1752977434182,-471.15867959,0.00018572,2]
[373378973,1752977434192,-460.0,0.00018572,2]
[373378975,1752977434202,-460.97305995,0.00018572,2]
[373378977,1752977434211,-462.02376811,0.00018572,2]
[373378979,1752977434221,-460.0,0.00018572,2]
[373378981,1752977434237,-498.31736671,0.00018572,2]
[373378983,1752977434247,-461.13877449,0.00018572,2]
[373378985,1752977434256,-460.0,0.00018572,2]
[373378987,1752977434266,-466.64719013,0.00018572,2]
[373378989,1752977434278,-460.83031915,0.00018572,2]
[373378991,1752977434288,-460.0,0.00018572,2]
[373378993,1752977434298,-460.0,0.00018572,2]
[373378995,1752977434310,-460.0,0.00018572,2]
[373379009,1752977434429,-475.55096748,0.00018572,2]
[373379012,1752977434469,-463.36354086,0.00018572,2]
[373379014,1752977434479,-460.0,0.00018572,2]
[373379016,1752977434492,-468.58511375,0.00018572,2]
[373379018,1752977434502,-467.89993122,0.00018572,2]
[373379020,1752977434513,-463.19226881,0.00018572,2]
[373379022,1752977434524,-460.0,0.00018572,2]
[373379024,1752977434534,-460.0,0.00018572,2]
[373379026,1752977434543,-460.79721201,0.00018572,2]
[373379028,1752977434555,-460.0,0.00018572,2]
[373379030,1752977434565,-357.50259491,0.00018572,2]
[373379032,1752977434575,-461.12172303,0.00018572,2]